Cogmind - Beta 13 @@@ ROGUE MODE // 2024.04.07 @ 22:34:40 Player: R.A.T Result: Destroyed by G-34 Mercenary with Small Laser Performance ------------- Evolutions (0) 0 Regions Visited (2) 400 Robots Destroyed (25) 125 Value Destroyed (631) 631 Prototype IDs (2) 40 Alien Tech Used (0) 0 Bonus (75) 75 TOTAL SCORE: 1271 Bonus ------- Follower Combat Kills 75 Cogmind --------- Core Integrity 0/250 Matter 300/300 Energy 257/265 System Corruption 0% Temperature Cool (6) Movement Walking (120) Location -10/Mines Parts ------- > --- POWER (1) -------- Improved Ion Engine > --- PROPULSION (2) --- Aluminum Leg Aluminum Leg > --- UTILITY (2) ------ Improved Heat Sink Small Storage Unit > --- WEAPON (2) ------- Heavy EM Pulse Gun Medium Laser > --- INVENTORY (8) ---- Improved Ion Engine Improved Ion Engine Aluminum Leg Aluminum Leg Aluminum Leg Heat Sink Improved Heat Sink Hardened Light Armor Plating Peak State ------------ > --- POWER ------------ Improved Ion Engine > --- PROPULSION ------- Aluminum Leg Aluminum Leg > --- UTILITY ---------- Improved Heat Sink Small Storage Unit > --- WEAPON ----------- Heavy EM Pulse Gun Heavy EM Pulse Gun > --- INVENTORY -------- Improved Ion Engine Heat Sink Hardened Light Armor Plating Medium Laser Grenade Launcher [Rating: 12] Favorites ----------- Power Improved Ion Engine Engine Improved Ion Engine Propulsion Aluminum Leg Leg Aluminum Leg Utility Small Storage Unit Device Improved Heat Sink Storage Small Storage Unit Weapon Heavy EM Pulse Gun Energy Gun Heavy EM Pulse Gun Launcher Grenade Launcher Build | -11 -10 -10 ------- Run | Yrd Mat Min Slots Evolved . | . . . Power . | . . . Propulsion . | . . . Utility . | . . . Weapon . | . . . Parts Attached 21 | 6 11 4 Power 3 | 1 2 . Engine 3 | 1 2 . Core . | . . . Reactor . | . . . Propulsion 6 | 2 4 . Treads . | . . . Leg 6 | 2 4 . Wheel . | . . . Hover . | . . . Flight . | . . . Utility 2 | 1 1 . Device 1 | . 1 . Storage 1 | 1 . . Processor . | . . . Hackware . | . . . Protection . | . . . Artifact . | . . . Weapon 10 | 2 4 4 Energy Gun 8 | 2 3 3 Energy Cannon . | . . . Ballistic Gun . | . . . Ballistic Cannon . | . . . Launcher 2 | . 1 1 Special Weapon . | . . . Impact Weapon . | . . . Slashing Weapon . | . . . Piercing Weapon . | . . . Special Melee Weapon . | . . . Unidentified Prototypes . | . . . Parts Lost 7 | . 5 2 Power 1 | . 1 . Propulsion 2 | . 2 . Utility . | . . . Weapon 4 | . 2 2 Highest Loss Streak 5 | . 5 1 To Critical Strikes . | . . . Average Slot Usage (%) 92 | . 87 95 Engine 13 | . 13 14 Leg 26 | . 24 28 Device 10 | . 6 14 Storage 14 | . 14 14 Energy Gun 25 | . 26 24 Naked Turns . | . . . Heaviest Build 19 | 12 19 19 Greatest Support 20 | 20 20 20 Greatest Overweight (x) 6 | . 6 1 Average Overweight (x) . | . . . Largest Inventory Capacity 8 | 8 8 8 Average Capacity 7 | 6 8 8 Most Carried 8 | 5 8 8 Average Carried 5 | 2 5 6 Final Capacity 8 | 8 8 8 Final Carried 8 | 2 6 8 Class Distribution -------------------- 93% | Mutant 6% | Scavenger-Mutant Dominant Class ---------------- Mutant | -10/Materials Mutant | -10/Mines Resources | -11 -10 -10 ----------- Run | Yrd Mat Min Matter Collected 405 | 223 112 70 Remotely . | . . . Salvage Created 955 | . 714 241 Parts 51 | . 40 11 Haulers Intercepted . | . . . Recyclers Shooed 3 | . 3 . Parts Field Recycled . | . . . Retrieved Matter . | . . . Parts Self-Destructed . | . . . Prevented . | . . . Kills | -11 -10 -10 ------- Run | Yrd Mat Min Combat Hostiles Destroyed 19 | . 13 6 Guns 13 | . 8 5 AOE 6 | . 5 1 Classes Destroyed 8 | . 7 1 Worker 2 | . 1 1 Builder 1 | . 1 . Tunneler 1 | . 1 . Recycler 2 | . 2 . Watcher 1 | . 1 . Swarmer 3 | . 3 . Grunt 15 | . 10 5 Assembled 1 | . . 1 Best Kill Streak 7 | . 7 3 Combat Bots Only 5 | . 5 3 Max Kills in Single Turn 3 | . 3 1 Gunslinging . | . . . Exploded 3 | . 3 1 Melee . | . . . Uniques/NPCs Destroyed . | . . . Combat | -11 -10 -10 -------- Run | Yrd Mat Min Hostile Shots Fired 128 | . 111 17 Missed 39 | . 34 5 Damage Taken 1076 | . 889 187 Core 251 | . 206 45 Absorbed by Shields . | . . . Core Remaining (%) 100 | 100 . . Volleys Fired 64 | . 45 19 Largest 2 | . 2 2 Hottest 95 | . 80 95 Shots Fired 115 | . 80 35 Gun 113 | . 79 34 Cannon . | . . . Launcher 2 | . 1 1 Special . | . . . Kinetic . | . . . Thermal 81 | . 73 8 Explosive 2 | . 1 1 Electromagnetic 32 | . 6 26 Robot Hit Streak 13 | . 9 13 Robot Miss Streak 4 | . 3 4 Penetration Max . | . . . Secondary Targets 2 | . 1 1 Max Gunslinging Chain 1 | . 1 1 Shots Hit Robots 66 | . 49 17 Core Hits 47 | . 37 10 Critical Kills . | . . . Critical Parts Destroyed . | . . . Critical Strikes 2 | . . 2 Burn 1 | . . 1 Corrupt 1 | . . 1 Melee Attacks . | . . . Impact . | . . . Slashing . | . . . Piercing . | . . . Sneak Attacks . | . . . Combat Hostiles . | . . . Follow-up Attacks . | . . . Damage Inflicted 1185 | . 797 388 Guns 828 | . 581 247 Cannons . | . . . Explosions 357 | . 216 141 Melee . | . . . Ramming . | . . . Kinetic . | . . . Thermal 704 | . 526 178 Explosive 93 | . 93 . Electromagnetic 388 | . 178 210 Impact . | . . . Slashing . | . . . Piercing . | . . . Highest Corruption . | . . . Average Corruption . | . . . Corruption Purged . | . . . Corruption Blocked . | . . . Overload Shots . | . . . Overflow Damage 25 | . 22 3 Projectiles . | . . . Explosions 25 | . 22 3 Melee . | . . . Knockbacks . | . . . Impact . | . . . Kinetic . | . . . Secondary . | . . . Self-Inflicted Damage 60 | . 20 40 Shots 2 | . 1 1 Rammed . | . . . Targets Rammed . | . . . Kicked . | . . . Crushed . | . . . Highest Temperature 186 | . 186 6 Average Temperature 51 | . 53 3 Received Heat Transfer 489 | . 441 48 Siege Activations . | . . . Robots Corrupted . | . . . Combat Hostiles . | . . . Parts Fried 2 | . 1 1 Impact Corruptions . | . . . Robots Melted . | . . . Combat Hostiles . | . . . Parts Melted 2 | . 2 . Heat Transferred 1585 | . 1150 435 Parts Sabotaged . | . . . Parts Stolen . | . . . Parts Stripped . | . . . Power Chain Reactions 3 | . 1 2 Alert | -11 -10 -10 ------- Run | Yrd Mat Min Peak Influence 340 | . 340 231 Initial 49 | . . 49 Average 99 | . 160 61 Maximum Alert Level 1 | . 1 1 Low Security (%) 81 | 100 65 92 Level 1 18 | . 34 7 Level 2 . | . . . Level 3 . | . . . Level 4 . | . . . Level 5 . | . . . High Security . | . . . Max Security . | . . . Squads Dispatched 2 | . 2 . Investigation 1 | . 1 . Extermination . | . . . Reinforcement 1 | . 1 . Assault . | . . . Garrison . | . . . Intercept . | . . . Searches Triggered . | . . . Construction Impeded . | . . . Haulers Reinforced . | . . . Active Scanning Responses . | . . . Cargo Convoy Interrupts . | . . . Stealth | -11 -10 -10 --------- Run | Yrd Mat Min Distress Signals . | . . . Communications Jammed . | . . . Distress Signals . | . . . Times Spotted 24 | . 15 9 Peak Tracking Total 5 | . 5 4 Tactical Retreats 1 | . . 1 Traps | -11 -10 -10 ------- Run | Yrd Mat Min Traps Triggered . | . . . Indirectly . | . . . Trap Hack Attempts . | . . . Triggered . | . . . Disarmed . | . . . Reprogrammed . | . . . Reused . | . . . Traps Extracted . | . . . Installed . | . . . Triggered . | . . . Machines | -11 -10 -10 ---------- Run | Yrd Mat Min Machines Disabled 1 | . 1 . Max in Single Turn 1 | . 1 . Machines Repaired . | . . . Machines Dismantled . | . . . Machines Sabotaged . | . . . Overloaded Fab Kills . | . . . Hacking | -11 -10 -10 --------- Run | Yrd Mat Min Machines Accessed 2 | . 2 . Terminals 2 | . 2 . Fabricators . | . . . Repair Stations . | . . . Recycling Units . | . . . Scanalyzers . | . . . Garrison Access . | . . . Total Hacks 8 | . 8 . Successful 3 | . 3 . Failed 5 | . 5 . Catastrophic . | . . . Database Lockouts . | . . . Manual 1 | . 1 . Terminals 8 | . 8 . Fabricators . | . . . Repair Stations . | . . . Recycling Units . | . . . Scanalyzers . | . . . Garrison Access . | . . . Terminal Hacks 3 | . 3 . Prototype ID Bank 1 | . 1 . Branch Access Points 1 | . 1 . Zone Layout 1 | . 1 . Fabricator Hacks . | . . . Repair Station Hacks . | . . . Recycling Unit Hacks . | . . . Scanalyzer . | . . . Garrison Access Hacks . | . . . Unauthorized Hacks . | . . . Terminals . | . . . Fabricators . | . . . Repair Stations . | . . . Recycling Units . | . . . Scanalyzers . | . . . Garrison Access . | . . . Data Cores Recovered . | . . . Used . | . . . Hacking Detections 1 | . 1 . Full Trace Events 1 | . 1 . Feedback Events . | . . . Feedback Blocked . | . . . Robot Schematics Acquired . | . . . Robots Built . | . . . Authchips . | . . . Time . | . . . Total Robot Build Rating . | . . . Part Schematics Acquired . | . . . Parts Built . | . . . Authchips . | . . . Time . | . . . Total Part Build Rating . | . . . Parts Repaired . | . . . Time . | . . . Parts Recycled . | . . . Recycled Matter . | . . . Retrieved Matter . | . . . Retrieved Components . | . . . Parts Scanalyzed . | . . . Part Schematics Acquired . | . . . Parts Damaged . | . . . Bothacking | -11 -10 -10 ------------ Run | Yrd Mat Min Used RIF Installer . | . . . Robots Hacked . | . . . Non-combat . | . . . Combat . | . . . Robot Hacks Applied . | . . . Relay Couplers Released . | . . . Fabnet Peak Effective % . | . . . Robots Rewired . | . . . Allies Hacked . | . . . Hacks Repelled . | . . . Allies | -11 -10 -10 -------- Run | Yrd Mat Min Total Allies 2 | . . 2 Largest Group 2 | . . 2 Highest-Rated Group 45 | . . 45 Highest-Rated Ally 31 | . . 31 Total Orders . | . . . Ally Attacks 15 | . . 15 Total Damage 193 | . . 193 Kills 3 | . . 3 Allies Corrupted . | . . . Allies Melted . | . . . Intel | -11 -10 -10 ------- Run | Yrd Mat Min Robot Analysis Total . | . . . Derelict Logs Recovered 1 | . . 1 Drone Launches . | . . . Drone Recoveries . | . . . Exploration | -11 -10 -10 ------------- Run | Yrd Mat Min Turns Passed 1083 | 55 450 578 Spaces Moved 657 | 49 226 382 Core 30 | 22 8 . Treads . | . . . Legs 627 | 27 218 382 Wheels . | . . . Hover . | . . . Flight . | . . . Fastest Speed 50 | 50 120 120 Average Speed 129 | 88 129 135 Slowest Speed 350 | 120 350 190 Overloaded Moves . | . . . Propulsion Burnouts . | . . . Robots Hopped . | . . . Cave-ins Triggered . | . . . Exploration Rate (%) 37 | 5 36 72 Regions Visited 2 Branch Regions 1 Pre-discovered Areas . | . . . Known Exits Taken 1 | . 1 . Unknown Exits Taken 1 | 1 . . Scrap Searched 1 | . . 1 Spaces Dug . | . . . Terrain Destroyed 18 | . 9 9 Melee . | . . . Projectile . | . . . AOE 18 | . 9 9 Terrain Rammed . | . . . Walls Destroyed . | . . . Machines Disabled . | . . . Actions | -11 -10 -10 --------- Run | Yrd Mat Min Total 772 | 59 303 410 Wait 2 | . 2 . Move 655 | 48 225 382 Hop . | . . . Pick Up 23 | 5 14 4 Fast Attach 4 | 3 1 . Attach 13 | 3 7 3 Detach 2 | . 1 1 Swap 4 | . 3 1 Drop 5 | . 5 . Fire 64 | . 45 19 Melee . | . . . Ram . | . . . Kick . | . . . Crush . | . . . Escape Stasis . | . . . Rewire . | . . . Trap . | . . . Miscellaneous . | . . . Route ------- -11/Scrapyard -10/Materials (discovered 2 exits: *Min x2) -10/Mines History --------- Turn | Location | Event 5 | -11/Scrapyard | Discovered new exit (range 16) 56 | -11/Scrapyard | Entered Materials 316 | -10/Materials | Identified exit to Mines 327 | -10/Materials | Build established: Mutant 386 | -10/Materials | Core integrity fell below 50% 413 | -10/Materials | Core integrity fell below 20% 462 | -10/Materials | Lost 5 parts (1p2n2w) 506 | -10/Materials | Entered Mines 588 | -10/Mines | Excavation squad dispatched 588 | -10/Mines | A large section of the Mines collapsed 838 | -10/Mines | Excavation squad dispatched 1084 | -10/Mines | Destroyed by G-34 Mercenary with Small Laser Last Messages --------------- 00848_ Acquired Imp. Heat Sink. 00858_ G-34 Mercenary destroyed. 00861_ Acquired Aluminum Leg. 00862_ G-34 Mercenary destroyed. 00867_ Acquired Aluminum Leg. 00927_ T-07 Excavator suffers critical hit (Burn). 00934_ T-07 Excavator is excavating. 00962_ Acquired derelict log, extracted data. Data stored: Mines entrances (x2). 00967_ T-07 Excavator is excavating. 01040_ Searching scrap... 01040_ Found Aluminum Leg. 01040_ Found Flight Unit. 01040_ Found Aluminum Leg. 01040_ Found Sml. Matter Pod. 01040_ Found 14 Matter. 01073_ K-01 Serf collects debris. 01082_ Chain reaction triggered in Ion Engine. 01082_ K-01 Serf destroyed. Map ----- +----------------------------------------------------+ | ?????????????????????????????????????????????????? | | ####?????????????????????????????????????????????? | | # ###???????????????????????????????????????????? | | ##??????????????????????????????????????????? | | #??????????????????????????????????????????? | | ##################?????????????????????????? | | === #?????????????####????????? | | ########%######## #######???????# #???????? | | #???????#!######?# #??????### ##??????? | | ##??????# #?###### #?????## ######## | | ##?????###### #??????# #????## | | ##?????????# #??????# #??### ####### | | #?????????# #??????# #### ##?????? | | #?????###?# ######## ##??????? | | ##????# ### ##???????? | | # ##???# ########## ##????????? | | ## ###? ?????????## #?????????? | | ?## ## #????????????### #### #?????????? | | ??# #???#?? #??###### #??# ##?????????? | | ??# ##### ??# #??# ##??????????? | | ??# ###tg######??# #???????????? | | ??# #???????# #???????????? | | ??# ### #### #???????# #???????????? | | ??# #??# ##???# #???????# #???????????? | | ??## ##????#?#????# #???????# #######?????? | | ???## ##???????###### @#???????# #?????? | | ????## ##????????# =%! #???????######## #???##? | | ?????## #?????????# #??????????????# ##?## # | | ??????# #?????????# #;g;##?????????????## ### | | ??????# ######????# #;%;##?????????????# ### | | ??????# #????#####= ##???????????## #?## | | ??????###### #???###" %! ####?????????## #??# | | ???????????# #???## = t " ##????????# #### | | ???????????# ###### #????????# ## | | ???????????# # ""##???##?## # | | ???????????# # r "" #???## ## ## | | ???????????############ % ##???# ## | | ?????????????????####?## ##???# # | | ??????????????????????#" %= ##??## | | ??????????????????????#" ##??# | | ??????????????????????#"# % #??## | | ??????????????????????#### % "##### ## | | ?????????????????????????# " #### ## | | ?????????????????????????# ###### #??## ##? | | ?????????????????????????# #????# #???######?? | | ?????????????????????????# ##????# ##?????????? | | ?????????????????????????## ##????## *##????????? | | ??????????????????????????# #?????# %!#????????? | | ??????????????????????????# #?????# %%#????????? | | ??????????????????????????# #?????# =#[ ???? | +----------------------------------------------------+ Best States ------------- Heat Dissipation 39 Energy Generation 12 Energy Capacity 265 Matter Stores 300 Matter Capacity 300 Sight Range 16 Terrain Scan Density 10 Evasion (%) 55 Item Schematics ----------------- None Robot Schematics ------------------ None Fabricated ------------ Nothing Alien Tech Used ----------------- None Achievements -------------- None Challenges ------------ None Game ------ Seed TrackerMinesnifferPendant Manual? 0 Play Time 00:13:23 Cumulative 4.0 hours Start 2024.04.07 @ 22:22:29 End 2024.04.07 @ 22:34:40 Sessions 1 Manual Loads 0 Difficulty Rogue Special Mode None Game No. 9 Rogue 9 Adventurer 0 Explorer 0 Win Type - Total 0 Types 0/0/0/0/0/0/0/0/0 Lore% 2 Gallery% 7 Achievement% 7 Wizard Run 0 Options --------- Layout 1 ASCII 0 Keyboard 0 Movement Mouse Keybinds 0 Fullscreen 2 Font 24/Smallcaps Map View 50x35 Zoom Use 0% Tactical HUD 1 Map Filters NONE Filters NONE Steam 1 RUN: 5d48c81a-6ad3-45d9-8cc7-db89167759bc